Workbook

Sheet тестовый
A1: Протокол по итогам муниципального этапа ВсОШ по предмету "татарский язык для учащихся школ с родным языком обучения" Сармановского муниципального района в 2019-2020 учебном году
A2: № п/п | B2: Муниципалитет | C2: Полное наименование образовательного учреждения (по уставу) | D2: Фамилия | E2: Класс | F2: Балл | G2: Апеляционный балл | H2: Итоговый балл | I2: Максимальный балл
A3: 1 | B3: Сармановский | C3: МБОУ"Сармановская гимназия" | D3: Миннугулова | E3: 5 | F3: 36 | I3: 57
A4: 2 | B4: Сармановский | C4: МБОУ "Большенуркеевская СОШ" | D4: Махубрахманов | E4: 5 | F4: 35 | I4: 57
A5: 3 | B5: Сармановский | C5: МБОУ"Сармановская гимназия" | D5: Юнусова | E5: 5 | F5: 39 | I5: 57
A6: 4 | B6: Сармановский | C6: МБОУ"Сармановская гимназия" | D6: Брызгалов | E6: 5 | F6: 47 | I6: 57
A7: 5 | B7: Сармановский | C7: МБОУ "Кавзияковская ООШ" | D7: Сахбетдинова | E7: 6 | F7: 38.5 | H7: =G7+F7 -> 38.5 | I7: 62
A8: 6 | B8: Сармановский | C8: МБОУ"Сармановская гимназия" | D8: Ихсанова | E8: 6 | F8: 44 | H8: =G8+F8 -> 44 | I8: 62
A9: 7 | B9: Сармановский | C9: МБОУ"Сармановская гимназия" | D9: Шайгаллямова | E9: 6 | F9: 55 | H9: 55 | I9: 62
A10: 31 | B10: Сармановский | C10: "Муртыш-Тамакская основная общеобразовательная школа" | D10: Хусаинова | E10: 7 | F10: 39 | H10: =G10+F10 -> 39 | I10: 59
A11: 8 | B11: Сармановский | C11: "Старокаширская общеобразовательная школа" | D11: Сайфуллин | E11: 7 | F11: 37.5 | H11: =G11+F11 -> 37.5 | I11: 59
A12: 10 | B12: Сармановский | C12: МБОУ"Сармановская гимназия" | D12: Галиуллина | E12: 7 | F12: 37.5 | H12: =G12+F12 -> 37.5 | I12: 59
A13: 11 | B13: Сармановский | C13: МБОУ"Сармановская гимназия" | D13: Сагитова | E13: 8 | F13: 41 | I13: 66
A14: 12 | B14: Сармановский | C14: МБОУ"Сармановская гимназия" | D14: Рашитова | E14: 8 | F14: 38 | I14: 66
A15: 13 | B15: Сармановский | C15: "Лякинская ООШ" | D15: Аксакова | E15: 8 | F15: 37 | I15: 66
A16: 14 | B16: Сармановский | C16: «Сармановская средняя общеобразовательная школа» | D16: Хатипова | E16: 9 | F16: 35 | I16: 70
A17: 15 | B17: Сармановский | C17: "Старокаширская общеобразовательная школа"филиал "Сарайлинская ООШ" | D17: Хабибуллина | E17: 9 | F17: 34.5 | I17: 70
A18: 16 | B18: Сармановский | C18: «Сармановская средняя общеобразовательная школа» | D18: Ибрагимова | E18: 9 | F18: 31.5 | I18: 70
A19: 17 | B19: Сармановский | C19: МБОУ "Большенуркеевская СОШ" | D19: Хайруллина | E19: 10 | F19: 23.5 | I19: 68
A20: 18 | B20: Сармановский | C20: МБОУ"Сармановская гимназия" | D20: Ахметзянова | E20: 10 | F20: 31.5 | I20: 68
A21: 19 | B21: Сармановский | C21: «Сармановская средняя общеобразовательная школа» | D21: Сабирова | E21: 10 | F21: 42 | I21: 68
A22: 20 | B22: Сармановский | C22: МБОУ"Сармановская гимназия" | D22: Мавлавиева | E22: 10 | F22: 50.5 | I22: 68
A23: 21 | B23: Сармановский | C23: МБОУ"Сармановская гимназия" | D23: Гарипова | E23: 11 | F23: 65.5 | I23: 77
A24: 22 | B24: Сармановский | C24: МБОУ "Большенуркеевская СОШ" | D24: Хамидуллина | E24: 11 | F24: 45 | I24: 77
A25: 23 | B25: Сармановский | C25: МБОУ "Сармановская гимназия" | D25: Шарафетдинов | E25: 4 | F25: 49.5 | H25: =G25+F25 -> 49.5 | I25: 57
A26: 24 | B26: Сармановский | C26: «Сармановская средняя общеобразовательная школа» | D26: Низамов | E26: 4 | F26: 40.5 | H26: =G26+F26 -> 40.5 | I26: 57
A27: 46 | B27: Сармановский | C27: МБОУ "Сармановская гимназия" | D27: Алексеева | E27: 4 | F27: 34.5 | G27: 3.5 | H27: =G27+F27 -> 38 | I27: 57
A28: 25 | B28: Сармановский | C28: МБОУ"Сармановская гимназия" | D28: Хакимуллина | E28: 4 | F28: 37 | H28: =G28+F28 -> 37 | I28: 57
A29: 26 | B29: Сармановский | C29: МБОУ «Альметьевская основная общеобразовательная школа» | D29: Мингазова | E29: 4 | F29: 36.5 | H29: =G29+F29 -> 36.5 | I29: 57
A30: 28 | B30: Сармановский | C30: МБОУ"Сармановская гимназия" | D30: Валиева | E30: 5 | F30: 38 | I30: 57
A31: 29 | B31: Сармановский | C31: МБОУ «Альметьевская основная общеобразовательная школа» | D31: Хуснимухаметова | E31: 5 | F31: 26.5 | I31: 57
A32: 30 | B32: Сармановский | C32: "Карашай-Сакловская ООШ" | D32: Фахразиева | E32: 6 | F32: 51 | H32: =G32+F32 -> 51 | I32: 62
A33: 54 | B33: Сармановский | C33: МБОУ"Сармановская гимназия" | D33: Хуснетдинова | E33: 7 | F33: 34.5 | H33: =G33+F33 -> 34.5 | I33: 59
A34: 32 | B34: Сармановский | C34: «Сармановская средняя общеобразовательная школа» | D34: Валиахметова | E34: 8 | F34: 36 | I34: 66
A35: 33 | B35: Сармановский | C35: "Старокаширская общеобразовательная школа" | D35: Миннегулов | E35: 9 | F35: 30.5 | I35: 70
A36: 34 | B36: Сармановский | C36: МБОУ "Кавзияковская ООШ" | D36: Мухаметзянова | E36: 9 | F36: 30.5 | I36: 70
A37: 27 | B37: Сармановский | C37: "Карашай-Сакловская ООШ" | D37: Сафина | E37: 4 | F37: 36.5 | H37: =G37+F37 -> 36.5 | I37: 57
A38: 35 | B38: Сармановский | C38: "Муртыш-Тамакская основная общеобразовательная школа" | D38: Гиниатуллина | E38: 4 | F38: 36 | H38: =G38+F38 -> 36 | I38: 57
A39: 37 | B39: Сармановский | C39: «Сармановская средняя общеобразовательная школа» | D39: Мусина | E39: 5 | F39: 35 | I39: 57
A40: 38 | B40: Сармановский | C40: МБОУ"Сармановская гимназия" | D40: Ханипов | E40: 6 | F40: 51.5 | H40: =G40+F40 -> 51.5 | I40: 62
A41: 9 | B41: Сармановский | C41: МБОУ "Кавзияковская ООШ" | D41: Фатихова | E41: 7 | F41: 31 | H41: =G41+F41 -> 31 | I41: 59
A42: 40 | B42: Сармановский | C42: "Азалаковская основная общеобразовательная школа" | D42: Габдулгазизова | E42: 9 | F42: 30 | I42: 70
A43: 41 | B43: Сармановский | C43: МБОУ «Альметьевская основная общеобразовательная школа» | D43: Ибрагимова | E43: 5 | F43: 24.5 | I43: 57
A44: 42 | B44: Сармановский | C44: МБОУ «Альметьевская основная общеобразовательная школа» | D44: Зарипова | E44: 6 | F44: 34.5 | H44: =G44+F44 -> 34.5 | I44: 62
A45: 43 | B45: Сармановский | C45: МБОУ «Альметьевская основная общеобразовательная школа» | D45: Насибуллина | E45: 7 | F45: 30 | H45: =G45+F45 -> 30 | I45: 59
A46: 36 | B46: Сармановский | C46: «Сармановская средняя общеобразовательная школа» | D46: Галиева | E46: 4 | F46: 35.5 | H46: =G46+F46 -> 35.5 | I46: 57
A47: 45 | B47: Сармановский | C47: МБОУ"Сармановская гимназия" | D47: Ситдикова | E47: 9 | F47: 29 | I47: 70
A48: 44 | B48: Сармановский | C48: "Старокаширская общеобразовательная школа" | D48: Ахметбаева | E48: 4 | F48: 35 | H48: =G48+F48 -> 35 | I48: 57
A49: 47 | B49: Сармановский | C49: МБОУ"Сармановская гимназия" | D49: Шакирова | E49: 4 | F49: 32 | H49: =G49+F49 -> 32 | I49: 57
A50: 48 | B50: Сармановский | C50: «Сармановская средняя общеобразовательная школа» | D50: Абулханова | E50: 5 | F50: 36.5 | I50: 57
A51: 49 | B51: Сармановский | C51: "Муртыш-Тамакская основная общеобразовательная школа" | D51: Газизова | E51: 5 | F51: 35 | I51: 57
A52: 50 | B52: Сармановский | C52: «Сармановская средняя общеобразовательная школа» | D52: Сабирова | E52: 6 | F52: 50.5 | G52: 1 | H52: =G52+F52 -> 51.5 | I52: 62
A53: 51 | B53: Сармановский | C53: «Сармановская средняя общеобразовательная школа» | D53: Аюпова | E53: 6 | F53: 41.5 | H53: =G53+F53 -> 41.5 | I53: 62
A54: 52 | B54: Сармановский | C54: "Старокаширская общеобразовательная школа" | D54: Зиннурова | E54: 6 | F54: 27.5 | H54: =G54+F54 -> 27.5 | I54: 62
A55: 53 | B55: Сармановский | C55: МБОУ"Сармановская гимназия" | D55: Латипова | E55: 8 | F55: 35.5 | I55: 66
A56: 39 | B56: Сармановский | C56: "Азалаковская основная общеобразовательная школа" | D56: Хамидуллина | E56: 7 | F56: 28.5 | H56: =G56+F56 -> 28.5 | I56: 59
A57: 80 | B57: Сармановский | C57: МБОУ "Саклов-Башская СОШ" | D57: Габидуллина | E57: 7 | F57: 28 | H57: =G57+F57 -> 28 | I57: 59
A58: 56 | B58: Сармановский | C58: МБОУ "Кавзияковская ООШ" | D58: Исламова | E58: 8 | F58: 34.5 | I58: 66
A59: 57 | B59: Сармановский | C59: «Сармановская средняя общеобразовательная школа» | D59: Хафизова | E59: 8 | F59: 30 | I59: 66
A60: 58 | B60: Сармановский | C60: МБОУ «Альметьевская основная общеобразовательная школа» | D60: Тимербаева | E60: 8 | F60: 29 | I60: 66
A61: 59 | B61: Сармановский | C61: "Старомензелябашская ООШ имени А.Тимергалина" | D61: Калимуллина | E61: 9 | F61: 28.5 | I61: 70
A62: 60 | B62: Сармановский | C62: МБОУ "Большенуркеевская СОШ" | D62: Мухаметова | E62: 9 | F62: 23 | I62: 70
A63: 61 | B63: Сармановский | C63: МБОУ "Иляксазская ООШ" | D63: Салахова | E63: 9 | F63: 21 | I63: 70
A64: 62 | B64: Сармановский | C64: МБОУ"Сармановская гимназия" | D64: Нагимова | E64: 9 | F64: 19.5 | I64: 70
A65: 63 | B65: Сармановский | C65: МБОУ"Сармановская гимназия" | D65: Хуснутдинов | E65: 10 | F65: 52.5 | I65: 68
A66: 64 | B66: Сармановский | C66: МБОУ"Сармановская гимназия" | D66: Сагдатова | E66: 10 | F66: 26.5 | I66: 68
A67: 65 | B67: Сармановский | C67: МБОУ"Сармановская гимназия" | D67: Набиуллина | E67: 11 | F67: 69.5 | I67: 77
A68: 66 | B68: Сармановский | C68: «Сармановская средняя общеобразовательная школа» | D68: Валиева | E68: 11 | F68: 44.5 | I68: 77
A69: 67 | B69: Сармановский | C69: «Сармановская средняя общеобразовательная школа» | D69: Валиева | E69: 11 | F69: 33.5 | I69: 77
A70: 68 | B70: Сармановский | C70: филиал МБОУ "Большенуркеевская СОШ" Сармановского МР РТ- Юлтимеровская ООШ | D70: Шамсетдинова | E70: 5 | F70: 23 | I70: 57
A71: 69 | B71: Сармановский | C71: «Сармановская средняя общеобразовательная школа» | D71: Алчинова | E71: 6 | F71: 34 | H71: =G71+F71 -> 34 | I71: 62
A72: 70 | B72: Сармановский | C72: «Сармановская средняя общеобразовательная школа» | D72: Низамова | E72: 7 | F72: 26.5 | H72: =G72+F72 -> 26.5 | I72: 59
A73: 71 | B73: Сармановский | C73: «Сармановская средняя общеобразовательная школа» | D73: Газизова | E73: 9 | F73: 17.5 | I73: 70
A74: 72 | B74: Сармановский | C74: "Сарайлинская ООШ" | D74: Калимуллина | E74: 8 | F74: 28 | I74: 66
A75: 73 | B75: Сармановский | C75: МБОУ «Альметьевская основная общеобразовательная школа» | D75: Шакирова | E75: 9 | F75: 17 | I75: 70
A76: 74 | C76: «Сармановская средняя общеобразовательная школа» | D76: Киямов | E76: 4 | F76: 31 | H76: =G76+F76 -> 31 | I76: 57
A77: 75 | B77: Сармановский | C77: "Лякинская ООШ" | D77: Шакирова | E77: 4 | F77: 31 | H77: =G77+F77 -> 31 | I77: 57
A78: 76 | B78: Сармановский | C78: МБОУ "Кавзияковская ООШ" | D78: Халиуллина | E78: 4 | F78: 28.5 | H78: =G78+F78 -> 28.5 | I78: 57
A79: 77 | B79: Сармановский | C79: "Азалаковская основная общеобразовательная школа" | D79: Габдулгазизова | E79: 5 | F79: 25 | I79: 57
A80: 78 | B80: Сармановский | C80: МБОУ "Лешев-Тамакская ООШ" | D80: Кучербанев | E80: 4 | F80: 27.5 | H80: =G80+F80 -> 27.5 | I80: 57
A81: 79 | B81: Сармановский | C81: "Муртыш-Тамакская основная общеобразовательная школа" | D81: Шигапова | E81: 6 | F81: 36 | H81: =G81+F81 -> 36 | I81: 62
A82: 55 | B82: Сармановский | C82: "Лякинская ООШ" | D82: Терентьева | E82: 7 | F82: 25.5 | H82: =G82+F82 -> 25.5 | I82: 59
A83: 81 | B83: Сармановский | C83: МБОУ "Иляксазская ООШ" | D83: Агелтдинова | E83: 8 | F83: 22 | I83: 66
A84: 82 | B84: Сармановский | C84: МБОУ"Сармановская гимназия" | D84: Хасаншина | E84: 9 | F84: 16 | I84: 70
A85: 83 | B85: Сармановский | C85: "Каташ-Каранская общеобразовательная школа" | D85: Мухаметдинов | E85: 8 | F85: 21 | I85: 66
A86: 84 | B86: Сармановский | C86: МБОУ "Большенуркеевская СОШ" | D86: Харрасов | E86: 4 | F86: 27.5 | H86: =G86+F86 -> 27.5 | I86: 57
A87: 85 | B87: Сармановский | C87: "Сарайлинская ООШ" | D87: Фазлыев | E87: 4 | F87: 27 | H87: =G87+F87 -> 27 | I87: 57
A88: 86 | B88: Сармановский | C88: МБОУ "Лешев-Тамакская ООШ" | D88: Нуриева | E88: 5 | F88: 30.5 | I88: 57
A89: 99 | B89: Сармановский | C89: «Сармановская средняя общеобразовательная школа» | D89: Мугинова | E89: 7 | F89: 25 | H89: =G89+F89 -> 25 | I89: 59
A90: 88 | B90: Сармановский | C90: «Сармановская средняя общеобразовательная школа» | D90: Исмагилова | E90: 10 | F90: 13.5 | I90: 68
A91: 89 | B91: Сармановский | C91: МБОУ"Сармановская гимназия" | D91: Шамсемухаметова | E91: 4 | F91: 26.5 | H91: =G91+F91 -> 26.5 | I91: 57
A92: 90 | B92: Сармановский | C92: «Кутемелинская основная общеобразовательная школа» | D92: Султанова | E92: 5 | F92: 25.5 | I92: 57
A93: 87 | B93: Сармановский | C93: «Сармановская средняя общеобразовательная школа» | D93: Хазиева | E93: 7 | F93: 22.5 | H93: =G93+F93 -> 22.5 | I93: 59
A94: 92 | B94: Сармановский | C94: МБОУ "Саклов-Башская СОШ" | D94: Файзрахманова | E94: 6 | F94: 42 | H94: =G94+F94 -> 42 | I94: 62
A95: 93 | B95: Сармановский | C95: МБОУ "Саклов-Башская СОШ" | D95: Миннуллин | E95: 6 | F95: 46.5 | H95: =G95+F95 -> 46.5 | I95: 62
A96: 94 | B96: Сармановский | C96: «Сармановская средняя общеобразовательная школа» | D96: Миннеахметова | E96: 11 | F96: 17.5 | I96: 77
A97: 95 | B97: Сармановский | C97: МБОУ "Саклов-Башская СОШ" | D97: Нурияхметова | E97: 10 | F97: 5 | I97: 68
A98: 96 | B98: Сармановский | C98: «Сармановская средняя общеобразовательная школа» | D98: Шарафутдинова | E98: 9 | F98: 16 | I98: 70
A99: 97 | B99: Сармановский | C99: МБОУ "Иляксазская ООШ" | D99: Султанова | E99: 9 | F99: 15 | I99: 70
A100: 98 | B100: Сармановский | C100: "Старокаширская общеобразовательная школа" | D100: Рамазанова | E100: 11 | F100: 30 | I100: 77
A101: 91 | B101: Сармановский | C101: "Старокаширская общеобразовательная школа"филиал "Сарайлинская ООШ" | D101: Газизова | E101: 7 | F101: 22.5 | H101: =G101+F101 -> 22.5 | I101: 59
A102: 100 | B102: Сармановский | C102: "Старокаширская общеобразовательная школа"филиал "Сарайлинская ООШ" | D102: Шайдуллина | E102: 7 | F102: 17 | H102: 17 | I102: 59
A103: 101 | B103: Сармановский | C103: МБОУ «Альметьевская основная общеобразовательная школа» | D103: Михайлова | E103: 7 | F103: 15 | H103: 15 | I103: 59
A104: 102 | B104: Сармановский | C104: МБОУ «Альметьевская основная общеобразовательная школа» | D104: Хаков | E104: 4 | F104: 26.5 | H104: 26.5 | I104: 57
A105: 103 | B105: Сармановский | C105: "Сарайлинская ООШ" | D105: Абдуллаева | E105: 4 | F105: 24.5 | H105: 24.5 | I105: 57
A106: 104 | B106: Сармановский | C106: МБОУ"Сармановская гимназия" | D106: Салахтдинова | E106: 4 | F106: 22.5 | H106: 22.5 | I106: 57
A107: 105 | B107: Сармановский | C107: "Сарайлинская ООШ" | D107: Бадретдинов | E107: 6 | F107: 41.5 | H107: 41.5 | I107: 62
A108: 106 | B108: Сармановский | C108: "Сарайлинская ООШ" | D108: Нигматуллина | E108: 6 | F108: 41 | H108: 41 | I108: 62
A109: 107 | B109: Сармановский | C109: "Азалаковская основная общеобразовательная школа" | D109: Тазиева | E109: 6 | F109: 35.5 | H109: 35.5 | I109: 62
A110: 108 | B110: Сармановский | C110: МБОУ "Большенуркеевская СОШ" | D110: Гатиятуллина | E110: 8 | F110: 20 | I110: 66
A111: 109 | B111: Сармановский | C111: "Старомензелябашская ООШ имени А. Тимергалина" | D111: Иждавлетова | E111: 4 | F111: 20 | H111: =G111+F111 -> 20 | I111: 57
